Cogmind - Beta 12 @@@ ROGUE MODE // 2023.06.11 @ 00:12:58 Player: HexanyIves Result: Destroyed by as-14355 with Assembled Heavy Rifle Performance ------------- Evolutions (0) 0 Regions Visited (2) 400 Robots Destroyed (10) 50 Value Destroyed (141) 141 Prototype IDs (0) 0 Alien Tech Used (0) 0 Bonus (0) 0 TOTAL SCORE: 591 Bonus ------- None Cogmind --------- Core Integrity 0/250 Matter 295/300 Energy 57/100 System Corruption 0% Temperature Cool (8) Movement Flying (37) Location -10/Mines Parts ------- > --- POWER (1) -------- (None) > --- PROPULSION (2) --- Flight Unit Flight Unit > --- UTILITY (2) ------ Seismic Detector > --- WEAPON (2) ------- (None) > --- INVENTORY (5) ---- Ion Engine Flight Unit Sensor Array Light Assault Rifle Grenade Launcher Peak State ------------ > --- POWER ------------ Light Ion Engine > --- PROPULSION ------- Compact Wheel Compact Wheel > --- UTILITY ---------- Small Storage Unit Seismic Detector > --- WEAPON ----------- EM Pulse Gun Light Assault Rifle > --- INVENTORY -------- Ion Engine Light Ion Engine Aluminum Leg Aluminum Leg Compact Wheel Large Storage Unit Improved Terrain Scanner Light Assault Rifle [Rating: 8] Favorites ----------- Power Light Ion Engine Engine Light Ion Engine Propulsion Compact Wheel Wheel Compact Wheel Flight Unit Flight Unit Utility Seismic Detector Device Seismic Detector Storage Medium Storage Unit Weapon Light Assault Rifle Energy Gun EM Pulse Gun Ballistic Gun Light Assault Rifle Build | -11 -10 -10 ------- Run | Jun Mat Min Slots Evolved . | . . . Power . | . . . Propulsion . | . . . Utility . | . . . Weapon . | . . . Parts Attached 14 | 7 1 6 Power 2 | 1 . 1 Engine 2 | 1 . 1 Core . | . . . Reactor . | . . . Propulsion 5 | 2 . 3 Treads . | . . . Leg . | . . . Wheel 2 | 2 . . Hover . | . . . Flight 3 | . . 3 Utility 4 | 2 1 1 Device 2 | 1 . 1 Storage 2 | 1 1 . Processor . | . . . Hackware . | . . . Protection . | . . . Artifact . | . . . Weapon 3 | 2 . 1 Energy Gun 1 | 1 . . Energy Cannon . | . . . Ballistic Gun 2 | 1 . 1 Ballistic Cannon . | . . . Launcher . | . . . Special Weapon . | . . . Impact Weapon . | . . . Slashing Weapon . | . . . Piercing Weapon . | . . . Special Melee Weapon . | . . . Unidentified Prototypes . | . . . Parts Lost 8 | . . 8 Power 2 | . . 2 Propulsion 2 | . . 2 Utility 1 | . . 1 Weapon 3 | . . 3 Highest Loss Streak 5 | . . 5 To Critical Strikes . | . . . Average Slot Usage (%) 96 | . 100 93 Engine 12 | . 14 11 Wheel 26 | . 28 24 Flight 1 | . . 3 Device 13 | . 14 13 Storage 13 | . 14 12 Energy Gun 10 | . 14 6 Ballistic Gun 16 | . 14 19 Naked Turns . | . . . Heaviest Build 17 | 12 17 17 Greatest Support 32 | 32 32 32 Greatest Overweight (x) 1 | . . 1 Average Overweight (x) . | . . . Largest Inventory Capacity 10 | 8 10 10 Average Capacity 9 | 7 9 9 Most Carried 10 | 7 10 10 Average Carried 8 | 3 8 9 Final Capacity 10 | 8 10 5 Final Carried 10 | 7 10 5 Class Distribution -------------------- 100% | Mutant Dominant Class ---------------- Mutant | -10/Materials Mutant | -10/Mines Resources | -11 -10 -10 ----------- Run | Jun Mat Min Matter Collected 357 | 278 15 64 Remotely . | . . . Salvage Created 267 | 83 87 97 Parts 21 | 6 4 11 Haulers Intercepted . | . . . Recyclers Shooed . | . . . Parts Field Recycled . | . . . Retrieved Matter . | . . . Parts Self-Destructed . | . . . Prevented . | . . . Kills | -11 -10 -10 ------- Run | Jun Mat Min Combat Hostiles Destroyed 8 | . 2 6 Guns 8 | . 2 6 Classes Destroyed 4 | 2 1 1 Tunneler 1 | 1 . . Recycler 1 | 1 . . Swarmer 6 | . . 6 Grunt 2 | . 2 . Best Kill Streak 3 | 2 2 3 Combat Bots Only 3 | . 2 3 Max Kills in Single Turn 1 | 1 1 1 Gunslinging . | . . . Exploded . | . . . Melee . | . . . Uniques/NPCs Destroyed . | . . . Combat | -11 -10 -10 -------- Run | Jun Mat Min Damage Taken 859 | . 51 808 Core 266 | . 40 226 Absorbed by Shields . | . . . Core Remaining (%) 100 | 100 . . Volleys Fired 28 | 8 5 15 Largest 2 | 2 2 2 Hottest 60 | 60 60 60 Shots Fired 56 | 16 10 30 Gun 56 | 16 10 30 Cannon . | . . . Launcher . | . . . Special . | . . . Kinetic 32 | 8 5 19 Thermal . | . . . Explosive . | . . . Electromagnetic 24 | 8 5 11 Robot Hit Streak 8 | 4 8 6 Robot Miss Streak 4 | 1 1 4 Penetration Max . | . . . Secondary Targets 2 | . . 2 Max Gunslinging Chain 1 | . . 1 Shots Hit Robots 34 | 11 8 15 Core Hits 14 | 3 4 7 Critical Kills . | . . . Critical Parts Destroyed . | . . . Critical Strikes . | . . . Melee Attacks . | . . . Impact . | . . . Slashing . | . . . Piercing . | . . . Sneak Attacks . | . . . Combat Hostiles . | . . . Follow-up Attacks . | . . . Damage Inflicted 369 | 125 88 156 Guns 369 | 125 88 156 Cannons . | . . . Explosions . | . . . Melee . | . . . Ramming . | . . . Kinetic 170 | 43 36 91 Thermal . | . . . Explosive . | . . . Electromagnetic 199 | 82 52 65 Impact . | . . . Slashing . | . . . Piercing . | . . . Highest Corruption . | . . . Average Corruption . | . . . Corruption Purged . | . . . Corruption Blocked . | . . . Overload Shots . | . . . Overflow Damage . | . . . Projectiles . | . . . Explosions . | . . . Melee . | . . . Knockbacks . | . . . Impact . | . . . Kinetic . | . . . Secondary . | . . . Self-Inflicted Damage . | . . . Shots . | . . . Rammed . | . . . Targets Rammed . | . . . Kicked . | . . . Crushed . | . . . Highest Temperature 70 | 40 70 40 Average Temperature 29 | 25 45 22 Received Heat Transfer 50 | . 30 20 Siege Activations . | . . . Robots Corrupted . | . . . Combat Hostiles . | . . . Parts Fried . | . . . Impact Corruptions . | . . . Robots Melted . | . . . Combat Hostiles . | . . . Parts Melted . | . . . Heat Transferred . | . . . Parts Sabotaged . | . . . Parts Stolen . | . . . Parts Stripped . | . . . Power Chain Reactions . | . . . Missiles Intercepted . | . . . Alert | -11 -10 -10 ------- Run | Jun Mat Min Peak Influence 145 | 10 91 145 Initial 35 | . 6 35 Average 50 | 3 22 99 Maximum Alert Level . | . . . Low Security (%) 100 | 100 100 100 Level 1 . | . . . Level 2 . | . . . Level 3 . | . . . Level 4 . | . . . Level 5 . | . . . High Security . | . . . Max Security . | . . . Squads Dispatched . | . . . Investigation . | . . . Extermination . | . . . Reinforcement . | . . . Assault . | . . . Garrison . | . . . Intercept . | . . . Searches Triggered . | . . . Construction Impeded . | . . . Haulers Reinforced . | . . . Active Scanning Responses . | . . . Cargo Convoy Interrupts . | . . . Stealth | -11 -10 -10 --------- Run | Jun Mat Min Distress Signals . | . . . Communications Jammed . | . . . Distress Signals . | . . . Times Spotted 24 | . 5 19 Peak Tracking Total 11 | . 3 11 Tactical Retreats 1 | . . 1 Traps | -11 -10 -10 ------- Run | Jun Mat Min Traps Triggered . | . . . Indirectly . | . . . Trap Hack Attempts . | . . . Triggered . | . . . Disarmed . | . . . Reprogrammed . | . . . Reused . | . . . Traps Extracted . | . . . Installed . | . . . Triggered . | . . . Machines | -11 -10 -10 ---------- Run | Jun Mat Min Machines Disabled . | . . . Max in Single Turn . | . . . Machines Repaired . | . . . Machines Sabotaged . | . . . Overloaded Fab Kills . | . . . Hacking | -11 -10 -10 --------- Run | Jun Mat Min Machines Accessed . | . . . Terminals . | . . . Fabricators . | . . . Repair Stations . | . . . Recycling Units . | . . . Scanalyzers . | . . . Garrison Access . | . . . Total Hacks . | . . . Successful . | . . . Failed . | . . . Catastrophic . | . . . Database Lockouts . | . . . Manual . | . . . Terminals . | . . . Fabricators . | . . . Repair Stations . | . . . Recycling Units . | . . . Scanalyzers . | . . . Garrison Access . | . . . Terminal Hacks . | . . . Fabricator Hacks . | . . . Repair Station Hacks . | . . . Recycling Unit Hacks . | . . . Scanalyzer . | . . . Garrison Access Hacks . | . . . Unauthorized Hacks . | . . . Terminals . | . . . Fabricators . | . . . Repair Stations . | . . . Recycling Units . | . . . Scanalyzers . | . . . Garrison Access . | . . . Data Cores Recovered . | . . . Used . | . . . Hacking Detections . | . . . Full Trace Events . | . . . Feedback Events . | . . . Feedback Blocked . | . . . Robot Schematics Acquired . | . . . Robots Built . | . . . Authchips . | . . . Time . | . . . Total Robot Build Rating . | . . . Part Schematics Acquired . | . . . Parts Built . | . . . Authchips . | . . . Time . | . . . Total Part Build Rating . | . . . Parts Repaired . | . . . Time . | . . . Parts Recycled . | . . . Recycled Matter . | . . . Retrieved Matter . | . . . Retrieved Components . | . . . Parts Scanalyzed . | . . . Part Schematics Acquired . | . . . Parts Damaged . | . . . Bothacking | -11 -10 -10 ------------ Run | Jun Mat Min Used RIF Installer . | . . . Robots Hacked . | . . . Non-combat . | . . . Combat . | . . . Robot Hacks Applied . | . . . Relay Couplers Released . | . . . Fabnet Peak Effective % . | . . . Robots Rewired . | . . . Allies Hacked . | . . . Hacks Repelled . | . . . Allies | -11 -10 -10 -------- Run | Jun Mat Min Total Allies . | . . . Largest Group . | . . . Highest-Rated Group . | . . . Highest-Rated Ally . | . . . Total Orders . | . . . Ally Attacks . | . . . Total Damage . | . . . Kills . | . . . Allies Corrupted . | . . . Allies Melted . | . . . Intel | -11 -10 -10 ------- Run | Jun Mat Min Robot Analysis Total . | . . . Derelict Logs Recovered 1 | . . 1 Drone Launches . | . . . Drone Recoveries . | . . . Exploration | -11 -10 -10 ------------- Run | Jun Mat Min Turns Passed 641 | 112 270 259 Spaces Moved 458 | 55 175 228 Core 2 | 2 . . Treads . | . . . Legs . | . . . Wheels 408 | 53 175 180 Hover . | . . . Flight 48 | . . 48 Fastest Speed 37 | 50 100 37 Average Speed 94 | 98 100 89 Slowest Speed 117 | 100 100 117 Overloaded Moves . | . . . Propulsion Burnouts . | . . . Robots Hopped 4 | . . 4 Cave-ins Triggered . | . . . Exploration Rate (%) 25 | 5 32 40 Regions Visited 2 Branch Regions 1 Pre-discovered Areas 1 | . . 1 Known Exits Taken . | . . . Unknown Exits Taken 2 | 1 1 . Scrap Searched 1 | . . 1 Spaces Dug . | . . . Terrain Destroyed . | . . . Melee . | . . . Projectile . | . . . AOE . | . . . Terrain Rammed . | . . . Walls Destroyed . | . . . Machines Disabled . | . . . Actions | -11 -10 -10 --------- Run | Jun Mat Min Total 616 | 98 263 255 Wait 87 | 15 70 2 Move 449 | 54 174 221 Hop 3 | . . 3 Pick Up 27 | 14 8 5 Fast Attach . | . . . Attach 12 | 7 . 5 Detach . | . . . Swap 2 | . 1 1 Drop 8 | . 5 3 Fire 28 | 8 5 15 Melee . | . . . Ram . | . . . Kick . | . . . Crush . | . . . Escape Stasis . | . . . Rewire . | . . . Trap . | . . . Miscellaneous . | . . . Route ------- -11/Junkyard -10/Materials -10/Mines History --------- Turn | Location | Event 9 | -11/Junkyard | Discovered new exit (range 16) 113 | -11/Junkyard | Entered Materials 314 | -10/Materials | Build established: Mutant 341 | -10/Materials | Discovered new exit (range 15) 383 | -10/Materials | Entered Mines 514 | -10/Mines | Core integrity fell below 50% 532 | -10/Mines | Assembled infested the area 613 | -10/Mines | Core integrity fell below 20% 631 | -10/Mines | Learned location of Mines (-9) 642 | -10/Mines | Destroyed by as-14355 with Assembled Heavy Rifle Last Messages --------------- 00536_ K-01 Serf destroyed. 00566_ R-06 Scavenger collects Com. Wheel. 00570_ K-01 Serf cleans the Matter Pump. 00570_ R-06 Scavenger collects Corrupted Flight Unit. 00573_ T-07 Excavator destroyed. 00575_ R-06 Scavenger collects Corrupted Lgt. Assault Rifle. 00595_ R-06 Scavenger destroyed. 00600_ Com. Wheel destroyed. 00612_ Lgt. Ion Engine destroyed. 00612_ Knocked back. 00615_ Acquired 10 matter. 00617_ Lgt. Assault Rifle destroyed. 00624_ Flight Unit destroyed. 00625_ Dropped Med. Storage Unit. 00631_ Acquired derelict log, extracted data. World map updated: -9/Mines. 00633_ T-07 Excavator is excavating. 00639_ U-05 Engineer destroyed. 00641_ Lgt. Assault Rifle destroyed. 00642_ T-07 Excavator destroyed. Map ----- +----------------------------------------------------+ | | | ???????????????????????????????? | | ???????????????????????????????? | | ???????????????????????????????? | | ???????????????????????????????? | | ???????????????????????????????? | | ???????????????????????????????? | | ???????????????????????????????? | | ???????????????????????????????? | | ???????????????????????????????? | | ???????????????????????????????? | | ???????????????????????????????? | | ??????????????????????####?????? | | ?????????????????###### ##????? | | ?????????????????# #????? | | ?????????????????# =% = #????? | | ?????????????????### * % #????? | | ???????????????????## ! #????? | | ????????????????????## #????? | | ??????????############! a #????? | | ??????????# ##%aa ##???? | | ??????????# """ ### a##??? | | ??????????# """ #?##a #??? | | ??????????# """ #??#aaa #??? | | ??????????# #??##aa##??? | | ??????????###### ###???#@##???? | | ???????????????# #######a#????? | | ?????????#####?# #????? | | ????????## ### #########????? | | ????????# ###??????????? | | ????????# ##?????????? | | ???????## #?????????? | | ??????## !! #?????????? | | ??????# =!###### ##?????????? | | ??????# ##?????###??????????? | | ??????# #???????????????????? | | ??????## #???????????????????? | | ???????# ######??????????????? | | ???????# ## ##?????????????? | | ???????# #?????????????? | | ?####### =% #?????????????? | | ##????????????? | | ####?????????? | | ########## #?????????? | | ???????????## #?????????? | | ????????????# """ #?????????? | | ???????????##!""" ##?????????? | | ????????####!%""" ##??????????? | | ???????## *= #???????????? | | ???????# ##??????????? | +----------------------------------------------------+ Best States ------------- Heat Dissipation 25 Energy Generation 10 Energy Capacity 125 Matter Stores 300 Matter Capacity 300 Sight Range 16 Terrain Scan Density 10 Evasion (%) 62 Item Schematics ----------------- None Robot Schematics ------------------ None Fabricated ------------ Nothing Alien Tech Used ----------------- None Achievements -------------- None Challenges ------------ None Game ------ Seed MicroSapperField Manual? 0 Play Time 00:09:05 Cumulative 32.5 hours Start 2023.06.11 @ 00:06:51 End 2023.06.11 @ 00:12:58 Sessions 1 Manual Loads 0 Difficulty Rogue Special Mode None Game No. 51 Rogue 51 Adventurer 0 Explorer 0 Win Type - Total 0 Types 0/0/0/0/0/0/0/0/0 Lore% 29 Gallery% 37 Achievement% 30 Wizard Run 0 Options --------- ASCII 0 Keyboard 0 Movement Numpad Keybinds 0 Fullscreen 1 Font 12/Smallcaps Map View 83x54 Tactical HUD 1 Map Filters NONE Filters NONE Steam 1 RUN: 4a9b3465-b9a9-463a-b7fd-34ae5535e32d